fUST/lending_fUST_20240219
["ID","MTS","AMOUNT","RATE_DAILY","PERIOD"]
[314437370,1708349491620,-1000.0,0.00037,37]
[314437371,1708349491642,-272.96710045,0.00037,30]
[314437372,1708349491664,-1046.0,0.00037,30]
[314437373,1708349491688,-1779.26094487,0.00037498,31]
[314437374,1708349491711,-24852.0,0.00037777,60]
[314437375,1708349491734,-2000.0,0.00037871,30]
[314437376,1708349491756,-10642.32893893,0.00038,120]
[314437377,1708349491778,-2009.0,0.00038356,60]
[314437408,1708350634177,-158.974516,0.00022598,2]
[314437411,1708350634187,-162.02108506,0.00022984,2]
[314437414,1708350634197,-20979.70805573,0.00023084,2]
[314437417,1708350634206,-160.868304,0.00023439,2]
[314437420,1708350634215,-157.14305003,0.00023539,2]
[314437422,1708350634224,-24900.0,0.00023573,2]
[314437425,1708350634233,-2489.9788729,0.00023639,2]
[314437427,1708350634242,-2673.22,0.0002364,3]
[314437435,1708350634366,-2227.68,0.0002364,3]
[314437436,1708350634377,-1856.4,0.0002364,3]
[314437437,1708350634386,-7583.39118715,0.0002365,2]
[314437447,1708350638664,-906.19788675,0.0002365,2]
[314437448,1708350638723,-2497.2,0.0002365,2]
[314437449,1708350638734,-10003.91013348,0.0002365,2]
[314437551,1708350641884,-2116.49478037,0.0002365,2]
[314437556,1708350641945,-728.3243272,0.0002365,2]
[314437568,1708350643639,-6902.47184378,0.0002365,2]
[314437569,1708350643694,-478.15504077,0.0002365,2]
[314437570,1708350643705,-397.40086655,0.0002365,2]
[314437577,1708350646651,-2608.9,0.0002365,2]
[314437594,1708350826647,166.747112,0.00030959,120]
[314437599,1708350856365,156.0715124,0.000176,2]
[314437603,1708350867085,13577.7284065,0.0003,120]
[314437608,1708351007359,1790.565268,0.00027397,120]
[314437609,1708351007544,1790.565268,0.00031963,120]
[314437611,1708351312520,158.409756,0.00030959,120]
[314437615,1708351459515,895.282634,0.00027397,120]
[314437616,1708351459774,895.282634,0.00031963,120]
[314437618,1708351555468,1123.01,0.00033,120]
[314437645,1708351831893,-212.31781007,0.00022329,2]
[314437646,1708351831903,-212.31781007,0.0002233,2]
[314437647,1708351831912,-1589.70158376,0.0002233,2]
[314437648,1708351831921,-24900.0,0.00022331,2]
[314437649,1708351831931,-1760.6657198,0.0002238,2]
[314437650,1708351831940,-369.721154,0.00022454,2]
[314437651,1708351831949,-1383.5742485,0.00022478,2]
[314437652,1708351831958,-360.684021,0.00022542,2]
[314437653,1708351831968,-159.65890691,0.00022738,2]
[314437654,1708351831977,-15777.55393395,0.0002365,2]
[314437655,1708351831986,-203.5495988,0.00023836,2]
[314437656,1708351832119,-400.7672243,0.000239,2]
[314437657,1708351832129,-2256.83,0.0002399,3]
[314437658,1708351832138,-1880.69,0.0002399,3]
[314437659,1708351832148,-1567.24,0.0002399,3]
[314437660,1708351832157,-1306.03,0.0002399,3]
[314437661,1708351832167,-156.05011263,0.00023999,2]
[314437662,1708351832179,-408.53459539,0.00024,2]
[314437663,1708351832188,-8194.60619006,0.00024,3]
[314437664,1708351832200,-570.71840827,0.00024,3]
[314437674,1708351837935,-27015.54467541,0.00024,3]
[314437675,1708351839274,-110155.70980629,0.00024,3]
[314437676,1708351839283,-158.0974517,0.00024134,2]
[314437677,1708351839293,-200.3472215,0.00024178,2]
[314437678,1708351839302,-153.0,0.00024234,2]
[314437679,1708351839311,-200.3472215,0.00024334,2]
[314437680,1708351839320,-200.3472215,0.00024534,2]
[314437681,1708351839331,-307.8273952,0.00024534,2]
[314437682,1708351839339,-166.666666,0.00024658,2]
[314437683,1708351839348,-401.6042756,0.00024658,2]
[314437684,1708351839358,-158.0974517,0.000249,2]
[314437685,1708351839368,-1095.16916152,0.00024996,2]
[314437686,1708351839377,-916.0260449,0.00024997,2]
[314437687,1708351839386,-164.09125211,0.00024998,2]
[314437688,1708351839395,-500.0,0.00024999,2]
[314437689,1708351839404,-500.0,0.00024999,2]
[314437690,1708351839413,-500.0,0.00024999,2]
[314437691,1708351839422,-500.0,0.00024999,2]
[314437692,1708351839431,-500.0,0.00024999,2]
[314437693,1708351839440,-500.0,0.00024999,2]
[314437694,1708351839449,-500.0,0.00024999,2]
[314437695,1708351839459,-500.0,0.00024999,2]
[314437696,1708351839468,-500.0,0.00024999,2]
[314437697,1708351839477,-500.0,0.00024999,2]
[314437698,1708351839486,-500.0,0.00024999,2]
[314437699,1708351839495,-500.0,0.00024999,2]
[314437700,1708351839504,-500.0,0.00024999,2]
[314437701,1708351839513,-500.0,0.00024999,2]
[314437702,1708351839522,-500.0,0.00024999,2]
[314437703,1708351839531,-500.0,0.00024999,2]
[314437704,1708351839540,-500.0,0.00024999,2]
[314437705,1708351839549,-500.33911592,0.00024999,2]
[314437706,1708351839558,-500.0,0.00024999,2]
[314437707,1708351839567,-500.0,0.00024999,2]
[314437708,1708351839578,-500.0,0.00024999,2]
[314437709,1708351839588,-500.0,0.00024999,2]
[314437710,1708351839597,-500.0,0.00024999,2]
[314437711,1708351839607,-500.0,0.00024999,2]
[314437712,1708351839616,-500.0,0.00024999,2]
[314437713,1708351839626,-500.0,0.00024999,2]
[314437714,1708351839635,-500.0,0.00024999,2]
[314437715,1708351839644,-500.0,0.00024999,2]
[314437716,1708351839653,-500.0,0.00024999,2]
[314437717,1708351839662,-500.0,0.00024999,2]
[314437718,1708351839672,-500.0,0.00024999,2]
[314437719,1708351839682,-152.76932582,0.00024999,2]
[314437720,1708351839691,-500.0,0.00024999,2]
[314437721,1708351839700,-500.0,0.00024999,2]
[314437722,1708351839710,-158.88769856,0.00024999,2]
[314437723,1708351839719,-500.0,0.00024999,2]
[314437724,1708351839728,-500.0,0.00024999,2]
[314437725,1708351839738,-500.0,0.00024999,2]
[314437726,1708351839747,-500.0,0.00024999,2]
[314437727,1708351839756,-500.0,0.00024999,2]
[314437728,1708351839765,-500.0,0.00024999,2]
[314437729,1708351839774,-300.0,0.00024999,2]
[314437730,1708351839784,-500.0,0.00024999,2]
[314437731,1708351839793,-500.0,0.00024999,2]
[314437732,1708351839803,-500.0,0.00024999,2]
[314437733,1708351839812,-500.0,0.00024999,2]
[314437734,1708351839821,-500.0,0.00024999,2]
[314437735,1708351839833,-500.0,0.00024999,2]
[314437736,1708351839843,-500.0,0.00024999,2]
[314437737,1708351839851,-500.0,0.00024999,2]
[314437738,1708351839860,-500.0,0.00024999,2]
[314437739,1708351839869,-500.0,0.00024999,2]
[314437740,1708351839878,-500.0,0.00024999,2]
[314437741,1708351839887,-635.20319266,0.00024999,2]
[314437742,1708351839896,-500.0,0.00024999,2]
[314437743,1708351839905,-200.0,0.00024999,2]
[314437744,1708351839914,-605.55024076,0.00024999,2]
[314437745,1708351839923,-500.0,0.00024999,2]
[314437746,1708351839932,-500.0,0.00024999,2]
[314437747,1708351839941,-500.0,0.00024999,2]
[314437748,1708351839950,-500.0,0.00024999,2]
[314437749,1708351839959,-500.0,0.00024999,2]
[314437751,1708351839968,-500.0,0.00024999,2]
[314437753,1708351839977,-200.0,0.00024999,2]
[314437754,1708351839986,-500.0,0.00024999,2]
[314437755,1708351840103,-500.0,0.00024999,2]
[314437756,1708351840113,-500.0,0.00024999,2]
[314437757,1708351840122,-500.0,0.00024999,2]
[314437758,1708351840131,-500.0,0.00024999,2]
[314437759,1708351840140,-500.0,0.00024999,2]
[314437760,1708351840149,-500.0,0.00024999,2]
[314437761,1708351840158,-500.0,0.00024999,2]
[314437762,1708351840168,-500.0,0.00024999,2]
[314437763,1708351840179,-500.0,0.00024999,2]
[314437764,1708351840188,-500.0,0.00024999,2]
[314437765,1708351840198,-500.0,0.00024999,2]
[314437766,1708351840208,-500.0,0.00024999,2]
[314437767,1708351840218,-500.0,0.00024999,2]
[314437768,1708351840227,-500.0,0.00024999,2]
[314437769,1708351840236,-500.0,0.00024999,2]
[314437770,1708351840245,-500.0,0.00024999,2]
[314437771,1708351840254,-500.0,0.00024999,2]
[314437772,1708351840264,-500.0,0.00024999,2]
[314437773,1708351840274,-500.0,0.00024999,2]
[314437774,1708351840283,-500.0,0.00024999,2]
[314437775,1708351840292,-500.0,0.00024999,2]
[314437776,1708351840301,-500.0,0.00024999,2]
[314437777,1708351840310,-500.0,0.00024999,2]
[314437778,1708351840319,-500.0,0.00024999,2]
[314437779,1708351840329,-500.0,0.00024999,2]
[314437780,1708351840339,-500.0,0.00024999,2]
[314437781,1708351840348,-500.0,0.00024999,2]
[314437782,1708351840357,-500.0,0.00024999,2]
[314437783,1708351840368,-244.59233038,0.00024999,2]
[314437784,1708351840377,-500.0,0.00024999,2]
[314437785,1708351840386,-500.0,0.00024999,2]
[314437786,1708351840395,-500.0,0.00024999,2]
[314437787,1708351840404,-500.0,0.00024999,2]
[314437788,1708351840414,-500.0,0.00024999,2]
[314437789,1708351840423,-500.0,0.00024999,2]
[314437790,1708351840432,-500.0,0.00024999,2]
[314437791,1708351840441,-500.0,0.00024999,2]
[314437792,1708351840450,-500.0,0.00024999,2]
[314437793,1708351840459,-500.0,0.00024999,2]
[314437794,1708351840470,-500.0,0.00024999,2]
[314437795,1708351840479,-500.0,0.00024999,2]
[314437796,1708351840488,-500.0,0.00024999,2]
[314437797,1708351840497,-500.0,0.00024999,2]
[314437798,1708351840507,-500.0,0.00024999,2]
[314437799,1708351840516,-500.0,0.00024999,2]
[314437800,1708351840525,-500.0,0.00024999,2]
[314437801,1708351840534,-500.0,0.00024999,2]
[314437802,1708351840543,-238.84421473,0.00024999,2]
[314437803,1708351840552,-500.0,0.00024999,2]
[314437804,1708351840561,-500.0,0.00024999,2]
[314437805,1708351840570,-500.0,0.00024999,2]
[314437806,1708351840581,-500.0,0.00024999,2]
[314437807,1708351840590,-500.0,0.00024999,2]
[314437808,1708351840600,-500.0,0.00024999,2]
[314437809,1708351840609,-500.0,0.00024999,2]
[314437810,1708351840619,-500.0,0.00024999,2]
[314437811,1708351840628,-500.0,0.00024999,2]
[314437812,1708351840638,-500.0,0.00024999,2]
[314437813,1708351840647,-500.0,0.00024999,2]
[314437814,1708351840656,-500.0,0.00024999,2]
[314437815,1708351840665,-500.0,0.00024999,2]
[314437816,1708351840674,-500.0,0.00024999,2]
[314437817,1708351840684,-500.0,0.00024999,2]
[314437818,1708351840693,-500.0,0.00024999,2]
[314437819,1708351840702,-500.0,0.00024999,2]
[314437820,1708351840711,-500.0,0.00024999,2]
[314437821,1708351840720,-500.0,0.00024999,2]
[314437822,1708351840728,-500.0,0.00024999,2]
[314437823,1708351840737,-270.87172492,0.00024999,2]
[314437824,1708351840746,-500.0,0.00024999,2]
[314437825,1708351840755,-500.0,0.00024999,2]
[314437826,1708351840765,-500.0,0.00024999,2]
[314437827,1708351840774,-500.0,0.00024999,2]
[314437828,1708351840784,-500.0,0.00024999,2]
[314437829,1708351840793,-500.0,0.00024999,2]
[314437830,1708351840802,-500.0,0.00024999,2]
[314437831,1708351840811,-500.0,0.00024999,2]
[314437832,1708351840821,-500.0,0.00024999,2]
[314437833,1708351840831,-500.0,0.00024999,2]
[314437834,1708351840841,-500.0,0.00024999,2]
[314437835,1708351840850,-499.99999999,0.00024999,2]
[314437836,1708351840859,-500.0,0.00024999,2]
[314437837,1708351840868,-500.0,0.00024999,2]
[314437838,1708351840877,-500.0,0.00024999,2]
[314437839,1708351840886,-500.0,0.00024999,2]
[314437840,1708351840896,-500.0,0.00024999,2]
[314437841,1708351840905,-188.04925446,0.00024999,2]
[314437842,1708351840914,-500.0,0.00024999,2]
[314437843,1708351840923,-500.0,0.00024999,2]
[314437844,1708351840932,-500.0,0.00024999,2]
[314437846,1708351840940,-500.0,0.00024999,2]
[314437848,1708351840949,-500.0,0.00024999,2]
[314437850,1708351840959,-500.0,0.00024999,2]
[314437852,1708351840967,-500.0,0.00024999,2]
[314437854,1708351840976,-500.0,0.00024999,2]
[314437856,1708351840985,-500.0,0.00024999,2]
[314437858,1708351840995,-500.0,0.00024999,2]
[314437860,1708351841004,-500.0,0.00024999,2]
[314437862,1708351841013,-500.0,0.00024999,2]
[314437864,1708351841022,-500.0,0.00024999,2]
[314437866,1708351841031,-500.0,0.00024999,2]
[314437868,1708351841041,-500.0,0.00024999,2]
[314437870,1708351841050,-500.0,0.00024999,2]
[314437872,1708351841058,-500.0,0.00024999,2]
[314437874,1708351841067,-500.0,0.00024999,2]
[314437876,1708351841077,-500.0,0.00024999,2]
[314437877,1708351841087,-500.0,0.00024999,2]
[314437878,1708351841095,-500.0,0.00024999,2]
[314437880,1708351841104,-204.95470338,0.00024999,2]
[314437882,1708351841113,-500.0,0.00024999,2]
[314437884,1708351841122,-500.0,0.00024999,2]
[314437886,1708351841130,-500.0,0.00024999,2]
[314437888,1708351841139,-500.0,0.00024999,2]
[314437889,1708351841148,-500.0,0.00024999,2]
[314437891,1708351841157,-500.0,0.00024999,2]
[314437893,1708351841167,-500.0,0.00024999,2]
[314437896,1708351841177,-500.0,0.00024999,2]
[314437898,1708351841188,-416.33684309,0.00024999,2]
[314437900,1708351841197,-500.0,0.00024999,2]
[314437902,1708351841207,-500.0,0.00024999,2]
[314437903,1708351841216,-178.39447118,0.00024999,2]
[314437905,1708351841225,-500.0,0.00024999,2]
[314437907,1708351841234,-500.0,0.00024999,2]
[314437909,1708351841243,-500.0,0.00024999,2]
[314437911,1708351841252,-500.0,0.00024999,2]
[314437914,1708351841263,-490.12007094,0.00024999,2]
[314437915,1708351841272,-500.0,0.00024999,2]
[314437917,1708351841281,-500.0,0.00024999,2]
[314437919,1708351841290,-500.0,0.00024999,2]
[314437921,1708351841299,-500.0,0.00024999,2]
[314437923,1708351841308,-500.0,0.00024999,2]
[314437925,1708351841316,-500.0,0.00024999,2]
[314437927,1708351841327,-500.0,0.00024999,2]
[314437930,1708351841337,-500.0,0.00024999,2]
[314437931,1708351841347,-500.0,0.00024999,2]
[314437934,1708351841356,-500.0,0.00024999,2]
[314437936,1708351841366,-500.0,0.00024999,2]
[314437937,1708351841375,-500.0,0.00024999,2]
[314437939,1708351841384,-500.0,0.00024999,2]
[314437941,1708351841394,-500.0,0.00024999,2]
[314437943,1708351841403,-584.33142402,0.00024999,2]
[314437945,1708351841413,-500.0,0.00024999,2]
[314437948,1708351841423,-500.0,0.00024999,2]
[314437949,1708351841432,-584.33142402,0.00024999,2]
[314437951,1708351841442,-500.0,0.00024999,2]
[314437953,1708351841451,-650.94062665,0.00024999,2]
[314437955,1708351841460,-584.33142402,0.00024999,2]
[314437957,1708351841470,-500.0,0.00024999,2]
[314437959,1708351841479,-584.33142402,0.00024999,2]
[314437961,1708351841488,-584.33142402,0.00024999,2]
[314437963,1708351841497,-500.0,0.00024999,2]
[314437965,1708351841506,-584.33142402,0.00024999,2]
[314437967,1708351841516,-500.0,0.00024999,2]
[314437969,1708351841525,-584.33142402,0.00024999,2]
[314437971,1708351841535,-500.0,0.00024999,2]
[314437973,1708351841544,-584.33142402,0.00024999,2]
[314437975,1708351841553,-584.33142402,0.00024999,2]
[314437977,1708351841562,-584.33142402,0.00024999,2]
[314437979,1708351841571,-584.33142402,0.00024999,2]
[314437981,1708351841584,-584.33142402,0.00024999,2]
[314437983,1708351841593,-500.0,0.00024999,2]
[314437985,1708351841602,-584.33142402,0.00024999,2]
[314437987,1708351841611,-584.33142402,0.00024999,2]
[314437989,1708351841620,-584.33142402,0.00024999,2]
[314437991,1708351841629,-584.33142402,0.00024999,2]
[314437993,1708351841639,-584.33142402,0.00024999,2]
[314437995,1708351841648,-584.33142402,0.00024999,2]
[314437997,1708351841657,-584.33142402,0.00024999,2]
[314437999,1708351841666,-584.33142402,0.00024999,2]
[314438001,1708351841676,-584.33142402,0.00024999,2]
[314438003,1708351841685,-584.33142402,0.00024999,2]
[314438006,1708351841695,-584.33142402,0.00024999,2]
[314438008,1708351841704,-584.33142402,0.00024999,2]
[314438009,1708351841713,-584.33142402,0.00024999,2]
[314438011,1708351841723,-584.33142402,0.00024999,2]
[314438014,1708351841732,-584.33142402,0.00024999,2]
[314438015,1708351841742,-584.33142402,0.00024999,2]
[314438017,1708351841751,-584.33142402,0.00024999,2]
[314438019,1708351841760,-584.33142402,0.00024999,2]
[314438022,1708351841769,-584.33142402,0.00024999,2]
[314438024,1708351841778,-584.33142402,0.00024999,2]
[314438025,1708351841787,-584.33142402,0.00024999,2]
[314438028,1708351841797,-584.33142402,0.00024999,2]
[314438030,1708351841806,-584.33142402,0.00024999,2]
[314438031,1708351841815,-584.33142402,0.00024999,2]
[314438033,1708351841824,-584.33142402,0.00024999,2]
[314438035,1708351841835,-584.33142402,0.00024999,2]
[314438038,1708351841844,-584.33142402,0.00024999,2]
[314438040,1708351841853,-584.33142402,0.00024999,2]
[314438042,1708351841863,-584.33142402,0.00024999,2]
[314438043,1708351841872,-584.33142402,0.00024999,2]
[314438045,1708351841881,-584.33142402,0.00024999,2]
[314438048,1708351841890,-500.0,0.00024999,2]
[314438049,1708351841899,-500.0,0.00024999,2]
[314438052,1708351841909,-500.0,0.00024999,2]
[314438054,1708351841918,-500.0,0.00024999,2]
[314438056,1708351841927,-250.0,0.00024999,2]
[314438058,1708351841936,-599.52404107,0.00024999,2]
[314438060,1708351841945,-599.52404107,0.00024999,2]
[314438071,1708351842043,-599.52404107,0.00024999,2]
[314438073,1708351842053,-599.52404107,0.00024999,2]
[314438076,1708351842070,-599.52404107,0.00024999,2]
[314438078,1708351842086,-599.52404107,0.00024999,2]
[314438080,1708351842096,-599.52404107,0.00024999,2]
[314438083,1708351842106,-599.52404107,0.00024999,2]
[314438085,1708351842117,-599.52404107,0.00024999,2]
[314438087,1708351842127,-599.52404105,0.00024999,2]
[314438089,1708351842137,-185.67254641,0.00025,3]
[314438091,1708351842147,-16277.855633,0.00025,2]
[314438093,1708351842158,-455792.10390926,0.00025,4]
[314438102,1708351842344,-501.0874373,0.00025,4]
[314438119,1708351842895,-355.49797126,0.00025,4]
[314438166,1708351924524,447.641317,0.00027397,120]
[314438167,1708351924747,447.641317,0.00031963,120]
[314438168,1708352035244,158.409756,0.00030959,120]
[314438169,1708352126018,151.0438027,0.00025434,120]
[314438170,1708352206076,2500.0,0.00033,120]
[314438171,1708352211047,2500.0,0.00033,120]
[314438174,1708352376891,223.820658,0.00027397,120]
[314438175,1708352377106,223.820658,0.00031963,120]
[314438176,1708352494562,-212.31781007,0.00022446,2]
[314438177,1708352494589,-1589.70158376,0.00022446,2]
[314438178,1708352494615,-168.769378,0.00022447,2]
[314438179,1708352494642,-2157.6718808,0.00022451,2]
[314438180,1708352494671,-2075.76611254,0.000229,2]
[314438181,1708352494699,-2196.5663516,0.00023521,2]
[314438182,1708352494727,-151.38896906,0.00023546,2]
[314438183,1708352494756,-24900.0,0.00023644,2]
[314438195,1708352628837,399.5541351,0.00023457,2]
[314438200,1708352705209,1383.84407503,0.000229,2]
[314438201,1708352717778,4764.41970404,0.00023457,2]
[314438204,1708352788993,158.409756,0.00030959,120]
[314438256,1708353038010,-715.7492109,0.00023274,2]
[314438257,1708353038020,-11190.82819606,0.00023457,2]
[314438259,1708353038030,-414.803325,0.00023831,2]
[314438260,1708353038039,-777.08,0.0002399,3]
[314438261,1708353038048,-388.54,0.0002399,3]
[314438262,1708353038057,-194.27,0.0002399,3]
[314438263,1708353038068,-582.83,0.0002399,3]
[314438265,1708353038077,-524.87,0.0002399,3]
[314438268,1708353038086,-11907.98941702,0.00024,2]
[314438271,1708353038098,-502.12603421,0.00024,2]
[314438291,1708353038887,223.820658,0.00027397,120]
[314438354,1708353041265,-1000.88,0.0002399,3]
[314438357,1708353041278,-3241.261808,0.00024,2]
[314438360,1708353041294,-22067.0386347,0.00024,2]
[314438362,1708353041309,-3450.549999,0.00024,2]
[314438365,1708353041328,-7784.46855571,0.00024,2]
[314438368,1708353041343,-1311.4125627,0.00024,2]
[314438370,1708353041358,-1828.26556274,0.00024,2]
[314438445,1708353046083,-1596.09917428,0.00024,2]
[314438446,1708353306639,922.56271669,0.000219,2]
[314438447,1708353466097,158.409756,0.00030959,120]
[314438448,1708353525151,223.820658,0.00027397,120]
[314438449,1708353908117,615.04181112,0.000219,2]
[314438471,1708354020175,158.409756,0.00030959,120]
[314438526,1708354238209,-488.37018888,0.00023055,2]
[314438544,1708354241529,-836.63005357,0.00023055,2]
[314438545,1708354241544,-474.99975755,0.00023055,2]
[314438546,1708354241554,-910.5747599,0.00023056,2]
[314438547,1708354241563,-207.401662,0.00023828,2]
[314438548,1708354241572,-31743.14951651,0.00024,2]
[314438553,1708354244090,-1688.35940036,0.00024,2]
[314438554,1708354244099,-1000.0,0.00024,24]
[314438555,1708354244108,-634.528738,0.00024209,2]
[314438556,1708354244117,-166.666666,0.00024658,2]
[314438557,1708354244126,-791.45153857,0.000248,2]
[314438558,1708354244136,-791.45153855,0.00024825,2]
[314438559,1708354244145,-791.45153855,0.0002485,2]
[314438560,1708354244154,-791.45153855,0.00024875,2]
[314438561,1708354244163,-453.29,0.0002489,3]
[314438562,1708354244171,-226.65,0.0002489,3]
[314438563,1708354244180,-679.96,0.0002489,3]
[314438564,1708354244189,-1554.1,0.0002489,3]
[314438565,1708354244198,-1295.09,0.0002489,3]
[314438566,1708354244207,-155.01705188,0.00024899,2]
[314438567,1708354244216,-276000.0,0.000249,2]
[314438568,1708354244225,-791.45153855,0.000249,2]
[314438569,1708354244233,-1083.65527373,0.00024999,2]
[314438570,1708354244242,-500.0,0.00024999,2]
[314438571,1708354244251,-500.0,0.00024999,2]
[314438572,1708354244260,-348.3559103,0.00024999,2]
[314438573,1708354244269,-500.0,0.00024999,2]
[314438574,1708354244278,-500.0,0.00024999,2]
[314438575,1708354244287,-500.0,0.00024999,2]
[314438576,1708354244296,-517.65418873,0.00024999,2]
[314438577,1708354244305,-500.0,0.00024999,2]
[314438578,1708354244314,-500.0,0.00024999,2]
[314438579,1708354244324,-500.0,0.00024999,2]
[314438580,1708354244333,-502.31908055,0.00024999,2]
[314438581,1708354244342,-500.0,0.00024999,2]
[314438582,1708354244351,-500.0,0.00024999,2]
[314438583,1708354244361,-500.0,0.00024999,2]
[314438584,1708354244370,-632.23556344,0.00024999,2]
[314438585,1708354244379,-475.99385689,0.00024999,2]
[314438586,1708354244388,-500.0,0.00024999,2]
[314438587,1708354244398,-500.0,0.00024999,2]
[314438588,1708354244408,-500.0,0.00024999,2]
[314438589,1708354244417,-487.56102827,0.00024999,2]
[314438590,1708354244426,-383.43784741,0.00024999,2]
[314438591,1708354244537,-327.7274482,0.00024999,2]
[314438592,1708354244548,-500.0,0.00024999,2]
[314438593,1708354244557,-165.44456755,0.00024999,2]
[314438594,1708354244566,-185.67254642,0.00025,3]
[314438595,1708354244576,-243351.31068218,0.00025,4]
[314438596,1708354244585,-200.0,0.00025,5]
[314438597,1708354244595,-4744.51264344,0.00025,2]
[314438598,1708354244604,-2170.05777801,0.00025,4]
[314438599,1708354244614,-1000.0,0.00025,25]
[314438600,1708354244623,-166.666666,0.00025235,2]
[314438601,1708354244633,-300.0,0.000254,12]
[314438602,1708354244642,-620.7264369,0.0002542,2]
[314438603,1708354244651,-2383.81633113,0.00025422,3]
[314438604,1708354244661,-200.0,0.00025479,2]
[314438605,1708354244671,-205.298,0.00025573,2]
[314438606,1708354244682,-166.666666,0.00025812,2]
[314438607,1708354244691,-1000.0,0.0002584,3]
[314438608,1708354244700,-50000.0,0.00025974,2]
[314438609,1708354244710,-1000.0,0.00026,26]
[314438610,1708354244721,-2741.58724658,0.00026105,2]
[314438611,1708354244731,-151.01510151,0.00026149,30]
[314438612,1708354244741,-2983.5659154,0.00026165,2]
[314438613,1708354244749,-18087.86843492,0.00026199,2]
[314438614,1708354244759,-28783.05353811,0.00026199,2]
[314438615,1708354244768,-3850.71330715,0.00026199,2]
[314438616,1708354244776,-906.58,0.0002626,3]
[314438617,1708354244785,-453.3,0.0002626,3]
[314438618,1708354244795,-166.666666,0.00026388,2]
[314438619,1708354244805,-198175.20492974,0.000266,2]
[314438620,1708354244814,-151.01510151,0.00026682,7]
[314438621,1708354244823,-295.0,0.00026688,2]
[314438622,1708354244834,-620.03632184,0.00026691,2]
[314438623,1708354244845,-680.9591381,0.00026716,3]
[314438624,1708354244854,-290.25779691,0.00026716,2]
[314438625,1708354244864,-1000.0,0.00026716,3]
[314438626,1708354244873,-171.27210699,0.00026716,2]
[314438627,1708354244885,-162.65424534,0.00026716,2]
[314438628,1708354244894,-188.125,0.00026716,2]
[314438629,1708354244905,-227.73313137,0.00026716,2]
[314438630,1708354244914,-322.19175575,0.00026716,2]
[314438631,1708354244925,-461.08207112,0.00026716,2]
[314438632,1708354244934,-151.0,0.00026716,2]
[314438633,1708354244943,-151.0,0.00026716,2]
[314438634,1708354244955,-151.545041,0.00026716,2]
[314438635,1708354244965,-1000.0,0.00026716,3]
[314438636,1708354244974,-25256.53551464,0.00026716,3]
[314438637,1708354244983,-1000.0,0.00026716,3]
[314438638,1708354244992,-10646.99402927,0.00026716,3]
[314438639,1708354245002,-300.0,0.000269,12]
[314438640,1708354245014,-615.04181112,0.000269,2]
[314438641,1708354245023,-166.666666,0.00026965,2]
[314438642,1708354245033,-181.35585642,0.00027,2]
[314438643,1708354245042,-500.0,0.00027,2]
[314438644,1708354245052,-1000.0,0.00027,27]
[314438645,1708354245062,-2092.79904588,0.00027,3]
[314438646,1708354245072,-200.00023764,0.00027,2]
[314438647,1708354245081,-153.0,0.00027123,2]
[314438648,1708354245091,-400.7308336,0.00027123,2]
[314438649,1708354245100,-306.0,0.00027123,2]
[314438650,1708354245109,-307.2762618,0.00027123,2]
[314438651,1708354245118,-479.2575874,0.00027123,2]
[314438652,1708354245130,-306.0,0.00027123,2]
[314438653,1708354245139,-153.0,0.00027123,2]
[314438654,1708354245148,-306.0,0.00027123,2]